[Event "December 5 Late 2023"]
[Site "https://www.chess.com"]
[Date "2023.12.05"]
[Round "1"]
[White "Ewing, Gabriel"]
[Black "Bijaoui, Manuel"]
[Result "0-1"]
[Board "166"]
[TimeControl "180+1"]
[WhiteFideId "2061880"]
[BlackFideId "626783"]
[WhiteElo "2145"]
[BlackElo "2545"]
[WhiteTeam "USA"]
[BlackTeam "FRA"]
[WhiteClock "0:01:36"]
[BlackClock "0:02:28"]

1. d4 {[%clk 0:03:00]}  Nf6 {[%clk 0:02:56]} 2. c4 {[%clk 0:03:00]}  g6 {[%clk 0:02:50]} 3. Nc3 {[%clk 0:03:00]}  Bg7 {[%clk 0:02:50]} 4. e4 {[%clk 0:03:00]}  d6 {[%clk 0:02:50]} 5. f3 {[%clk 0:03:00]}  O-O {[%clk 0:02:50]} 6. Be3 {[%clk 0:03:00]}  c5 {[%clk 0:02:51]} 7. Nge2 {[%clk 0:02:59]}  Nc6 {[%clk 0:02:50]} 8. d5 {[%clk 0:02:58]}  Ne5 {[%clk 0:02:50]} 9. Ng3 {[%clk 0:02:57]}  h5 {[%clk 0:02:49]} 10. Be2 {[%clk 0:02:52]}  h4 {[%clk 0:02:42]} 11. Nf1 {[%clk 0:02:51]}  e6 {[%clk 0:02:39]} 12. Nd2 {[%clk 0:02:38]}  exd5 {[%clk 0:02:37]} 13. cxd5 {[%clk 0:02:36]}  a6 {[%clk 0:02:37]} 14. a4 {[%clk 0:02:35]}  Re8 {[%clk 0:02:36]} 15. O-O {[%clk 0:02:34]}  Nh5 {[%clk 0:02:30]} 16. f4 {[%clk 0:02:25]}  Nd7 {[%clk 0:02:29]} 17. Bxh5 {[%clk 0:02:20]}  gxh5 {[%clk 0:02:30]} 18. Qxh5 {[%clk 0:02:20]}  Nf6 {[%clk 0:02:30]} 19. Qxh4 {[%clk 0:02:12]}  Ng4 {[%clk 0:02:30]} 20. Rf3 {[%clk 0:01:36]}  Qxh4 {[%clk 0:02:28]} 0-1

[Event "December 5 Late 2023"]
[Site "https://www.chess.com"]
[Date "2023.12.05"]
[Round "1"]
[White "Martins, Bruno Andre Leite"]
[Black "Yushko, Olga"]
[Result "1-0"]
[Board "167"]
[TimeControl "180+1"]
[WhiteFideId "1942255"]
[BlackFideId "14114500"]
[WhiteElo "2543"]
[BlackElo "2126"]
[WhiteTeam "POR"]
[BlackTeam "UKR"]
[WhiteClock "0:00:09"]
[BlackClock "0:00:07"]

1. d4 {[%clk 0:02:47]}  e6 {[%clk 0:02:59]} 2. c4 {[%clk 0:02:46]}  f5 {[%clk 0:03:00]} 3. Nc3 {[%clk 0:02:44]}  Nf6 {[%clk 0:03:00]} 4. g3 {[%clk 0:02:44]}  Be7 {[%clk 0:03:01]} 5. Bg2 {[%clk 0:02:44]}  O-O {[%clk 0:03:00]} 6. Nf3 {[%clk 0:02:44]}  d6 {[%clk 0:03:00]} 7. O-O {[%clk 0:02:45]}  Qe8 {[%clk 0:03:00]} 8. Qc2 {[%clk 0:02:40]}  Qg6 {[%clk 0:03:00]} 9. d5 {[%clk 0:02:31]}  e5 {[%clk 0:03:00]} 10. Nh4 {[%clk 0:02:24]}  Qh5 {[%clk 0:02:57]} 11. Bf3 {[%clk 0:02:23]}  Qf7 {[%clk 0:02:55]} 12. Nxf5 {[%clk 0:02:22]}  Bd8 {[%clk 0:02:29]} 13. e4 {[%clk 0:01:44]}  Na6 {[%clk 0:02:27]} 14. a3 {[%clk 0:01:39]}  Nc5 {[%clk 0:02:10]} 15. b4 {[%clk 0:01:37]}  Bxf5 {[%clk 0:02:10]} 16. exf5 {[%clk 0:01:31]}  e4 {[%clk 0:02:05]} 17. Be2 {[%clk 0:01:15]}  Ncd7 {[%clk 0:01:58]} 18. Nxe4 {[%clk 0:01:14]}  Ne5 {[%clk 0:01:52]} 19. Ng5 {[%clk 0:01:08]}  Qe8 {[%clk 0:01:48]} 20. f4 {[%clk 0:01:07]}  Neg4 {[%clk 0:01:42]} 21. Ne6 {[%clk 0:01:06]}  Rf7 {[%clk 0:01:41]} 22. h3 {[%clk 0:01:05]}  Nh6 {[%clk 0:01:38]} 23. g4 {[%clk 0:01:02]}  Nd7 {[%clk 0:01:30]} 24. Bb2 {[%clk 0:01:00]}  Bf6 {[%clk 0:01:29]} 25. Rae1 {[%clk 0:00:59]}  Bxb2 {[%clk 0:01:28]} 26. Qxb2 {[%clk 0:01:00]}  a5 {[%clk 0:01:17]} 27. Bd3 {[%clk 0:00:57]}  Qc8 {[%clk 0:01:12]} 28. Kg2 {[%clk 0:00:57]}  axb4 {[%clk 0:01:12]} 29. axb4 {[%clk 0:00:56]}  c6 {[%clk 0:01:07]} 30. Kg3 {[%clk 0:00:48]}  cxd5 {[%clk 0:01:05]} 31. cxd5 {[%clk 0:00:49]}  Nb6 {[%clk 0:01:05]} 32. Qd4 {[%clk 0:00:49]}  Ra3 {[%clk 0:01:02]} 33. Rf3 {[%clk 0:00:46]}  Qc3 {[%clk 0:00:50]} 34. Qxb6 {[%clk 0:00:39]}  Qxe1+ {[%clk 0:00:46]} 35. Qf2 {[%clk 0:00:34]}  Qxb4 {[%clk 0:00:33]} 36. Qe2 {[%clk 0:00:24]}  Ra1 {[%clk 0:00:27]} 37. Ng5 {[%clk 0:00:22]}  Re1 {[%clk 0:00:25]} 38. Qc2 {[%clk 0:00:19]}  Rf8 {[%clk 0:00:22]} 39. Ne6 {[%clk 0:00:19]}  Re8 {[%clk 0:00:14]} 40. Qc7 {[%clk 0:00:18]}  Rg1+ {[%clk 0:00:12]} 41. Kh4 {[%clk 0:00:13]}  Qe1+ {[%clk 0:00:12]} 42. Kh5 {[%clk 0:00:14]}  Nf7 {[%clk 0:00:11]} 43. Qd7 {[%clk 0:00:08]}  Ra8 {[%clk 0:00:10]} 44. Ng5 {[%clk 0:00:07]}  Qe8 {[%clk 0:00:09]} 45. Qxe8+ {[%clk 0:00:07]}  Rxe8 {[%clk 0:00:10]} 46. Ne6 {[%clk 0:00:07]}  Rd1 {[%clk 0:00:09]} 47. g5 {[%clk 0:00:07]}  Nd8 {[%clk 0:00:07]} 48. h4 {[%clk 0:00:06]}  Nxe6 {[%clk 0:00:07]} 49. fxe6 {[%clk 0:00:07]}  b5 {[%clk 0:00:07]} 50. f5 {[%clk 0:00:07]}  b4 {[%clk 0:00:07]} 51. f6 {[%clk 0:00:08]}  gxf6 {[%clk 0:00:07]} 52. gxf6 {[%clk 0:00:09]}  Kf8 {[%clk 0:00:07]} 53. Bxh7 {[%clk 0:00:06]}  Rg1 {[%clk 0:00:07]} 54. Bg6 {[%clk 0:00:06]}  Rb8 {[%clk 0:00:07]} 55. e7+ {[%clk 0:00:06]}  Kg8 {[%clk 0:00:07]} 56. f7+ {[%clk 0:00:07]}  Kg7 {[%clk 0:00:07]} 57. f8=Q+ {[%clk 0:00:08]}  Rxf8 {[%clk 0:00:07]} 58. exf8=Q# {[%clk 0:00:09]} 1-0

[Event "December 5 Late 2023"]
[Site "https://www.chess.com"]
[Date "2023.12.05"]
[Round "1"]
[White "Novikova, Margarita"]
[Black "Erzhanov, Arman"]
[Result "1-0"]
[Board "168"]
[TimeControl "180+1"]
[WhiteFideId "14109689"]
[BlackFideId "4138821"]
[WhiteElo "2116"]
[BlackElo "2542"]
[WhiteTeam "GER"]
[BlackTeam "KAZ"]
[WhiteClock "0:00:19"]
[BlackClock "0:00:00"]

1. d4 {[%clk 0:02:41]}  d6 {[%clk 0:02:59]} 2. Nf3 {[%clk 0:02:40]}  g6 {[%clk 0:02:59]} 3. Bf4 {[%clk 0:02:39]}  Bg7 {[%clk 0:02:59]} 4. e4 {[%clk 0:02:38]}  Nd7 {[%clk 0:02:59]} 5. h3 {[%clk 0:02:37]}  e5 {[%clk 0:02:58]} 6. Bg3 {[%clk 0:02:35]}  Ne7 {[%clk 0:02:58]} 7. Nc3 {[%clk 0:02:31]}  O-O {[%clk 0:02:57]} 8. dxe5 {[%clk 0:02:31]}  dxe5 {[%clk 0:02:55]} 9. Bc4 {[%clk 0:02:25]}  c6 {[%clk 0:02:54]} 10. Qd6 {[%clk 0:02:21]}  Nb6 {[%clk 0:02:43]} 11. Qxd8 {[%clk 0:01:50]}  Rxd8 {[%clk 0:02:44]} 12. Bb3 {[%clk 0:01:46]}  a5 {[%clk 0:02:43]} 13. Bh4 {[%clk 0:01:19]}  Re8 {[%clk 0:01:46]} 14. Ng5 {[%clk 0:01:16]}  Rf8 {[%clk 0:01:38]} 15. a4 {[%clk 0:01:10]}  Bf6 {[%clk 0:00:54]} 16. Nxf7 {[%clk 0:01:00]}  Bxh4 {[%clk 0:00:52]} 17. Nxe5+ {[%clk 0:00:52]}  Kg7 {[%clk 0:00:51]} 18. Nf3 {[%clk 0:00:52]}  g5 {[%clk 0:00:26]} 19. Ke2 {[%clk 0:00:37]}  Rxf3 {[%clk 0:00:19]} 20. Kxf3 {[%clk 0:00:36]}  h5 {[%clk 0:00:17]} 21. g3 {[%clk 0:00:35]}  g4+ {[%clk 0:00:16]} 22. hxg4 {[%clk 0:00:33]}  Bxg4+ {[%clk 0:00:14]} 23. Kg2 {[%clk 0:00:34]}  Bf6 {[%clk 0:00:13]} 24. f3 {[%clk 0:00:33]}  Bd7 {[%clk 0:00:12]} 25. Rxh5 {[%clk 0:00:33]}  Rh8 {[%clk 0:00:11]} 26. Rxh8 {[%clk 0:00:30]}  Kxh8 {[%clk 0:00:12]} 27. Rd1 {[%clk 0:00:30]}  Kg7 {[%clk 0:00:10]} 28. f4 {[%clk 0:00:28]}  Bg4 {[%clk 0:00:10]} 29. Rd2 {[%clk 0:00:25]}  Ng6 {[%clk 0:00:03]} 30. e5 {[%clk 0:00:24]}  Be7 {[%clk 0:00:00]} 31. Ne4 {[%clk 0:00:19]} 1-0

[Event "December 5 Late 2023"]
[Site "https://www.chess.com"]
[Date "2023.12.05"]
[Round "1"]
[White "Kashefi, Amir Hosein"]
[Black "Mangialardo, Tiago Carvalho"]
[Result "1-0"]
[Board "171"]
[TimeControl "180+1"]
[WhiteFideId "12557935"]
[BlackFideId "2130718"]
[WhiteElo "2540"]
[BlackElo "2088"]
[WhiteTeam "IRI"]
[BlackTeam "BRA"]
[WhiteClock "0:00:05"]
[BlackClock "0:00:00"]

1. c4 {[%clk 0:02:29]}  e5 {[%clk 0:02:31]} 2. Nc3 {[%clk 0:02:28]}  Nf6 {[%clk 0:02:23]} 3. g3 {[%clk 0:02:16]}  Bc5 {[%clk 0:02:17]} 4. Bg2 {[%clk 0:02:11]}  O-O {[%clk 0:02:16]} 5. d3 {[%clk 0:02:03]}  c6 {[%clk 0:02:09]} 6. Nf3 {[%clk 0:02:02]}  Re8 {[%clk 0:01:46]} 7. O-O {[%clk 0:02:02]}  h6 {[%clk 0:01:45]} 8. Rb1 {[%clk 0:01:58]}  a5 {[%clk 0:01:42]} 9. a3 {[%clk 0:01:49]}  Na6 {[%clk 0:01:29]} 10. Nd2 {[%clk 0:01:40]}  d5 {[%clk 0:01:22]} 11. cxd5 {[%clk 0:01:33]}  cxd5 {[%clk 0:01:20]} 12. e4 {[%clk 0:01:17]}  Be6 {[%clk 0:01:15]} 13. exd5 {[%clk 0:01:10]}  Nxd5 {[%clk 0:01:15]} 14. Nde4 {[%clk 0:01:10]}  Ba7 {[%clk 0:01:09]} 15. Nb5 {[%clk 0:01:09]}  Bb6 {[%clk 0:00:58]} 16. Qe2 {[%clk 0:01:05]}  Nc5 {[%clk 0:00:42]} 17. Be3 {[%clk 0:00:53]}  Nxe3 {[%clk 0:00:40]} 18. fxe3 {[%clk 0:00:42]}  Nxe4 {[%clk 0:00:32]} 19. Bxe4 {[%clk 0:00:41]}  Qd7 {[%clk 0:00:32]} 20. a4 {[%clk 0:00:40]}  Rad8 {[%clk 0:00:27]} 21. Qf3 {[%clk 0:00:24]}  Bd5 {[%clk 0:00:20]} 22. Nc3 {[%clk 0:00:14]}  Bxe4 {[%clk 0:00:08]} 23. dxe4 {[%clk 0:00:15]}  f6 {[%clk 0:00:04]} 24. Nd5 {[%clk 0:00:15]}  Ba7 {[%clk 0:00:04]} 25. b3 {[%clk 0:00:16]}  Qd6 {[%clk 0:00:03]} 26. Rbd1 {[%clk 0:00:15]}  Qc5 {[%clk 0:00:04]} 27. Qg4 {[%clk 0:00:15]}  Kh8 {[%clk 0:00:02]} 28. Qh5 {[%clk 0:00:07]}  Qc2 {[%clk 0:00:02]} 29. Rc1 {[%clk 0:00:06]}  Qxb3 {[%clk 0:00:02]} 30. Rc7 {[%clk 0:00:06]}  Bxe3+ {[%clk 0:00:02]} 31. Kg2 {[%clk 0:00:06]}  Qc2+ {[%clk 0:00:00]} 32. Kh3 {[%clk 0:00:05]} 1-0

[Event "December 5 Late 2023"]
[Site "https://www.chess.com"]
[Date "2023.12.05"]
[Round "1"]
[White "Negron Lizarazo, Juan Sebastian"]
[Black "Silva Lucena, Cristian"]
[Result "1-0"]
[Board "172"]
[TimeControl "180+1"]
[WhiteFideId "3936910"]
[BlackFideId "2232588"]
[WhiteElo "2082"]
[BlackElo "2539"]
[WhiteTeam "COL"]
[BlackTeam "ESP"]
[WhiteClock "0:01:26"]
[BlackClock "0:00:58"]

1. e4 {[%clk 0:03:00]}  c5 {[%clk 0:02:56]} 2. Nc3 {[%clk 0:02:59]}  a6 {[%clk 0:02:55]} 3. g3 {[%clk 0:02:59]}  b5 {[%clk 0:02:55]} 4. Bg2 {[%clk 0:02:58]}  Bb7 {[%clk 0:02:56]} 5. d3 {[%clk 0:02:59]}  e6 {[%clk 0:02:56]} 6. Be3 {[%clk 0:02:59]}  Nf6 {[%clk 0:02:53]} 7. h3 {[%clk 0:02:57]}  h5 {[%clk 0:02:47]} 8. f4 {[%clk 0:02:57]}  d5 {[%clk 0:02:47]} 9. e5 {[%clk 0:02:56]}  Ng8 {[%clk 0:02:47]} 10. d4 {[%clk 0:02:52]}  cxd4 {[%clk 0:02:43]} 11. Bxd4 {[%clk 0:02:51]}  Nc6 {[%clk 0:02:44]} 12. Bf2 {[%clk 0:02:46]}  Nge7 {[%clk 0:02:44]} 13. Nf3 {[%clk 0:02:44]}  Nf5 {[%clk 0:02:44]} 14. O-O {[%clk 0:02:41]}  Be7 {[%clk 0:02:42]} 15. Ne2 {[%clk 0:02:38]}  Rc8 {[%clk 0:02:38]} 16. c3 {[%clk 0:02:37]}  g5 {[%clk 0:02:26]} 17. Nfd4 {[%clk 0:02:29]}  Nfxd4 {[%clk 0:02:20]} 18. Nxd4 {[%clk 0:02:23]}  gxf4 {[%clk 0:02:20]} 19. gxf4 {[%clk 0:02:23]}  Rg8 {[%clk 0:02:14]} 20. Kh2 {[%clk 0:02:18]}  Qc7 {[%clk 0:02:13]} 21. Qxh5 {[%clk 0:02:10]}  b4 {[%clk 0:01:57]} 22. Nxe6 {[%clk 0:02:04]}  Qd7 {[%clk 0:01:55]} 23. Nd4 {[%clk 0:01:56]}  Nxd4 {[%clk 0:01:51]} 24. Bxd4 {[%clk 0:01:50]}  bxc3 {[%clk 0:01:41]} 25. bxc3 {[%clk 0:01:40]}  Rc6 {[%clk 0:01:22]} 26. Rae1 {[%clk 0:01:36]}  Rcg6 {[%clk 0:01:20]} 27. Rf2 {[%clk 0:01:32]}  Bf8 {[%clk 0:01:13]} 28. e6 {[%clk 0:01:27]}  Rxe6 {[%clk 0:01:10]} 29. Rxe6+ {[%clk 0:01:26]}  Qxe6 {[%clk 0:00:58]} 30. Re2 {[%clk 0:01:26]} 1-0

[Event "December 5 Late 2023"]
[Site "https://www.chess.com"]
[Date "2023.12.05"]
[Round "1"]
[White "Lewicki, Miroslaw"]
[Black "Lutz, Igor Oscar"]
[Result "1-0"]
[Board "173"]
[TimeControl "180+1"]
[WhiteFideId "1113380"]
[BlackFideId "2110806"]
[WhiteElo "2536"]
[BlackElo "2078"]
[WhiteTeam "POL"]
[BlackTeam "BRA"]
[WhiteClock "0:01:42"]
[BlackClock "0:00:00"]

1. g3 {[%clk 0:02:43]}  d5 {[%clk 0:02:59]} 2. Bg2 {[%clk 0:02:44]}  c5 {[%clk 0:02:57]} 3. Nf3 {[%clk 0:02:41]}  Nc6 {[%clk 0:02:57]} 4. O-O {[%clk 0:02:41]}  e5 {[%clk 0:02:58]} 5. d3 {[%clk 0:02:41]}  f5 {[%clk 0:02:58]} 6. c4 {[%clk 0:02:41]}  e4 {[%clk 0:02:57]} 7. dxe4 {[%clk 0:02:40]}  fxe4 {[%clk 0:02:58]} 8. Ng5 {[%clk 0:02:39]}  Be7 {[%clk 0:02:53]} 9. cxd5 {[%clk 0:02:37]}  Bxg5 {[%clk 0:02:47]} 10. Bxg5 {[%clk 0:02:36]}  Qxg5 {[%clk 0:02:40]} 11. dxc6 {[%clk 0:02:36]}  bxc6 {[%clk 0:02:39]} 12. Bxe4 {[%clk 0:02:36]}  Bd7 {[%clk 0:02:38]} 13. Qa4 {[%clk 0:02:35]}  Qf6 {[%clk 0:02:32]} 14. Nc3 {[%clk 0:02:34]}  Ne7 {[%clk 0:02:27]} 15. Rad1 {[%clk 0:02:30]}  Nd5 {[%clk 0:02:14]} 16. Nxd5 {[%clk 0:02:10]}  cxd5 {[%clk 0:02:13]} 17. Qc2 {[%clk 0:02:11]}  Be6 {[%clk 0:01:22]} 18. Bxd5 {[%clk 0:02:08]}  O-O {[%clk 0:01:11]} 19. Qxc5 {[%clk 0:02:03]}  Rac8 {[%clk 0:01:00]} 20. Qd4 {[%clk 0:01:59]}  Qf5 {[%clk 0:00:54]} 21. e4 {[%clk 0:01:53]}  Qh3 {[%clk 0:00:45]} 22. Bxe6+ {[%clk 0:01:54]}  Qxe6 {[%clk 0:00:45]} 23. Qd5 {[%clk 0:01:55]}  Qxd5 {[%clk 0:00:35]} 24. Rxd5 {[%clk 0:01:56]}  Rc2 {[%clk 0:00:35]} 25. Rb5 {[%clk 0:01:56]}  Re8 {[%clk 0:00:34]} 26. f3 {[%clk 0:01:55]}  Rd8 {[%clk 0:00:34]} 27. Rf2 {[%clk 0:01:56]}  Rc1+ {[%clk 0:00:16]} 28. Kg2 {[%clk 0:01:54]}  Rdd1 {[%clk 0:00:17]} 29. f4 {[%clk 0:01:49]}  h6 {[%clk 0:00:15]} 30. e5 {[%clk 0:01:49]}  Rg1+ {[%clk 0:00:15]} 31. Kf3 {[%clk 0:01:49]}  Rgd1 {[%clk 0:00:14]} 32. f5 {[%clk 0:01:48]}  Rd3+ {[%clk 0:00:14]} 33. Kg4 {[%clk 0:01:48]}  Re1 {[%clk 0:00:14]} 34. e6 {[%clk 0:01:44]}  Kh7 {[%clk 0:00:14]} 35. Rb7 {[%clk 0:01:44]}  Re4+ {[%clk 0:00:13]} 36. Kh3 {[%clk 0:01:43]}  h5 {[%clk 0:00:12]} 37. f6 {[%clk 0:01:43]}  Rg4 {[%clk 0:00:00]} 38. f7 {[%clk 0:01:42]} 1-0

[Event "December 5 Late 2023"]
[Site "https://www.chess.com"]
[Date "2023.12.05"]
[Round "1"]
[White "Feliz Dotel, Dewar Bienvenido"]
[Black "Cervantes Landeiro, Thalia"]
[Result "0-1"]
[Board "174"]
[TimeControl "180+1"]
[WhiteFideId "6402801"]
[BlackFideId "3520498"]
[WhiteElo "2077"]
[BlackElo "2534"]
[WhiteTeam "DOM"]
[BlackTeam "USA"]
[WhiteClock "0:00:00"]
[BlackClock "0:00:47"]

1. d4 {[%clk 0:02:57]}  Nf6 {[%clk 0:02:59]} 2. e3 {[%clk 0:02:57]}  g6 {[%clk 0:03:00]} 3. Nf3 {[%clk 0:02:58]}  d5 {[%clk 0:03:00]} 4. Be2 {[%clk 0:02:58]}  Bg7 {[%clk 0:03:01]} 5. O-O {[%clk 0:02:56]}  O-O {[%clk 0:03:01]} 6. b4 {[%clk 0:02:54]}  c6 {[%clk 0:02:58]} 7. c4 {[%clk 0:02:52]}  Ne4 {[%clk 0:02:57]} 8. Nfd2 {[%clk 0:02:51]}  a5 {[%clk 0:02:49]} 9. Nxe4 {[%clk 0:02:35]}  dxe4 {[%clk 0:02:50]} 10. bxa5 {[%clk 0:02:23]}  Qxa5 {[%clk 0:02:39]} 11. Bd2 {[%clk 0:02:14]}  Qg5 {[%clk 0:02:38]} 12. f4 {[%clk 0:02:04]}  exf3 {[%clk 0:02:37]} 13. Bxf3 {[%clk 0:02:02]}  e5 {[%clk 0:02:30]} 14. e4 {[%clk 0:01:55]}  Qe7 {[%clk 0:02:29]} 15. d5 {[%clk 0:01:53]}  Qc5+ {[%clk 0:02:26]} 16. Kh1 {[%clk 0:01:50]}  Qxc4 {[%clk 0:02:25]} 17. Nc3 {[%clk 0:01:39]}  Na6 {[%clk 0:02:00]} 18. Qb3 {[%clk 0:01:35]}  Qxb3 {[%clk 0:01:54]} 19. axb3 {[%clk 0:01:35]}  cxd5 {[%clk 0:01:54]} 20. Nxd5 {[%clk 0:01:34]}  Be6 {[%clk 0:01:54]} 21. Be2 {[%clk 0:00:43]}  Nc5 {[%clk 0:01:34]} 22. Bb4 {[%clk 0:00:37]}  Rxa1 {[%clk 0:01:10]} 23. Rxa1 {[%clk 0:00:38]}  Nxb3 {[%clk 0:01:09]} 24. Rb1 {[%clk 0:00:29]}  Ra8 {[%clk 0:01:06]} 25. h3 {[%clk 0:00:14]}  Nd4 {[%clk 0:00:59]} 26. Bc4 {[%clk 0:00:11]}  Bf8 {[%clk 0:00:54]} 27. Bxf8 {[%clk 0:00:06]}  Kxf8 {[%clk 0:00:55]} 28. Nb6 {[%clk 0:00:05]}  Rd8 {[%clk 0:00:52]} 29. Bxe6 {[%clk 0:00:05]}  Nxe6 {[%clk 0:00:53]} 30. Nd5 {[%clk 0:00:05]}  Rb8 {[%clk 0:00:50]} 31. Kh2 {[%clk 0:00:03]}  b5 {[%clk 0:00:50]} 32. Rb4 {[%clk 0:00:02]}  Kg7 {[%clk 0:00:47]} 33. g3 {[%clk 0:00:00]}  Nd4 {[%clk 0:00:47]} 0-1

[Event "December 5 Late 2023"]
[Site "https://www.chess.com"]
[Date "2023.12.05"]
[Round "1"]
[White "Kopczynski, Michal"]
[Black "Smirnov, Timofey"]
[Result "1-0"]
[Board "175"]
[TimeControl "180+1"]
[WhiteFideId "1124200"]
[BlackFideId "24176427"]
[WhiteElo "2532"]
[BlackElo "2056"]
[WhiteTeam "POL"]
[BlackTeam "RUS"]
[WhiteClock "0:01:40"]
[BlackClock "0:00:23"]

1. e4 {[%clk 0:03:00]}  e5 {[%clk 0:02:59]} 2. Nf3 {[%clk 0:03:00]}  Nf6 {[%clk 0:02:59]} 3. Nxe5 {[%clk 0:02:59]}  d6 {[%clk 0:02:59]} 4. Nf3 {[%clk 0:02:59]}  Nxe4 {[%clk 0:03:00]} 5. d4 {[%clk 0:02:59]}  d5 {[%clk 0:03:00]} 6. Bd3 {[%clk 0:03:00]}  Nc6 {[%clk 0:03:00]} 7. c4 {[%clk 0:02:58]}  Nb4 {[%clk 0:02:59]} 8. O-O {[%clk 0:02:56]}  Nxd3 {[%clk 0:02:52]} 9. Qxd3 {[%clk 0:02:57]}  Be7 {[%clk 0:02:44]} 10. Nc3 {[%clk 0:02:57]}  Nxc3 {[%clk 0:02:40]} 11. bxc3 {[%clk 0:02:58]}  dxc4 {[%clk 0:02:40]} 12. Qxc4 {[%clk 0:02:57]}  O-O {[%clk 0:02:40]} 13. Bf4 {[%clk 0:02:55]}  c6 {[%clk 0:02:29]} 14. Rab1 {[%clk 0:02:54]}  Be6 {[%clk 0:02:25]} 15. Qe2 {[%clk 0:02:53]}  b5 {[%clk 0:02:20]} 16. Ne5 {[%clk 0:02:51]}  Rc8 {[%clk 0:02:03]} 17. Rfe1 {[%clk 0:02:50]}  Bxa2 {[%clk 0:01:45]} 18. Qxa2 {[%clk 0:02:48]}  a5 {[%clk 0:01:32]} 19. Ra1 {[%clk 0:02:45]}  a4 {[%clk 0:01:31]} 20. Nd3 {[%clk 0:02:35]}  Re8 {[%clk 0:01:24]} 21. Be5 {[%clk 0:02:30]}  Bf6 {[%clk 0:01:10]} 22. Bxf6 {[%clk 0:02:29]}  Qxf6 {[%clk 0:01:11]} 23. Rxe8+ {[%clk 0:02:24]}  Rxe8 {[%clk 0:01:11]} 24. Ne5 {[%clk 0:02:24]}  Qe6 {[%clk 0:01:03]} 25. Qxe6 {[%clk 0:02:13]}  Rxe6 {[%clk 0:01:04]} 26. Kf1 {[%clk 0:02:09]}  Kf8 {[%clk 0:00:57]} 27. c4 {[%clk 0:01:57]}  bxc4 {[%clk 0:00:50]} 28. Rxa4 {[%clk 0:01:51]}  c5 {[%clk 0:00:50]} 29. Nd7+ {[%clk 0:01:48]}  Ke7 {[%clk 0:00:50]} 30. Nxc5 {[%clk 0:01:49]}  Rd6 {[%clk 0:00:45]} 31. Rxc4 {[%clk 0:01:47]}  Rc6 {[%clk 0:00:42]} 32. Ke2 {[%clk 0:01:45]}  Rb6 {[%clk 0:00:36]} 33. Kd3 {[%clk 0:01:45]}  Rb2 {[%clk 0:00:36]} 34. Ne4 {[%clk 0:01:44]}  Rb3+ {[%clk 0:00:34]} 35. Rc3 {[%clk 0:01:44]}  Rb4 {[%clk 0:00:33]} 36. Rc7+ {[%clk 0:01:44]}  Ke6 {[%clk 0:00:31]} 37. Ng5+ {[%clk 0:01:43]}  Kf5 {[%clk 0:00:30]} 38. Nxf7 {[%clk 0:01:42]}  Rb2 {[%clk 0:00:28]} 39. Ne5 {[%clk 0:01:40]}  Rxf2 {[%clk 0:00:23]} 40. Rf7+ {[%clk 0:01:40]} 1-0

[Event "December 5 Late 2023"]
[Site "https://www.chess.com"]
[Date "2023.12.05"]
[Round "1"]
[White "Sailer, Mike"]
[Black "Korchynskyi, Mykola"]
[Result "0-1"]
[Board "176"]
[TimeControl "180+1"]
[WhiteFideId "2012901"]
[BlackFideId "34138005"]
[WhiteElo "2041"]
[BlackElo "2529"]
[WhiteTeam "USA"]
[BlackTeam "UKR"]
[WhiteClock "0:00:08"]
[BlackClock "0:01:28"]

1. d4 {[%clk 0:02:58]}  d5 {[%clk 0:02:54]} 2. Bf4 {[%clk 0:02:56]}  Nf6 {[%clk 0:02:53]} 3. e3 {[%clk 0:02:57]}  e6 {[%clk 0:02:52]} 4. Nf3 {[%clk 0:02:57]}  Be7 {[%clk 0:02:50]} 5. Be2 {[%clk 0:02:57]}  O-O {[%clk 0:02:48]} 6. O-O {[%clk 0:02:57]}  b6 {[%clk 0:02:43]} 7. h3 {[%clk 0:02:56]}  Bb7 {[%clk 0:02:39]} 8. c4 {[%clk 0:02:56]}  Nbd7 {[%clk 0:02:28]} 9. Nc3 {[%clk 0:02:53]}  dxc4 {[%clk 0:02:27]} 10. Bxc4 {[%clk 0:02:52]}  c5 {[%clk 0:02:28]} 11. Nb5 {[%clk 0:02:38]}  cxd4 {[%clk 0:02:22]} 12. exd4 {[%clk 0:02:31]}  Nd5 {[%clk 0:02:00]} 13. Bh2 {[%clk 0:02:21]}  N7f6 {[%clk 0:01:58]} 14. Rc1 {[%clk 0:02:06]}  a6 {[%clk 0:01:54]} 15. Nc3 {[%clk 0:02:03]}  b5 {[%clk 0:01:53]} 16. Bd3 {[%clk 0:01:57]}  Rc8 {[%clk 0:01:54]} 17. Ne5 {[%clk 0:01:44]}  Qb6 {[%clk 0:01:47]} 18. Bb1 {[%clk 0:01:18]}  Rfd8 {[%clk 0:01:46]} 19. Qd3 {[%clk 0:01:15]}  Nxc3 {[%clk 0:01:43]} 20. bxc3 {[%clk 0:01:15]}  Be4 {[%clk 0:01:42]} 21. Qd2 {[%clk 0:00:58]}  Bxb1 {[%clk 0:01:41]} 22. Rxb1 {[%clk 0:00:58]}  Ne4 {[%clk 0:01:40]} 23. Qf4 {[%clk 0:00:57]}  Nf6 {[%clk 0:01:41]} 24. Rbc1 {[%clk 0:00:47]}  Bd6 {[%clk 0:01:40]} 25. Qh4 {[%clk 0:00:35]}  Bxe5 {[%clk 0:01:34]} 26. Bxe5 {[%clk 0:00:34]}  Nd5 {[%clk 0:01:34]} 27. Qg3 {[%clk 0:00:24]}  f6 {[%clk 0:01:33]} 28. Bf4 {[%clk 0:00:21]}  Rc6 {[%clk 0:01:31]} 29. Bd2 {[%clk 0:00:21]}  Rdc8 {[%clk 0:01:31]} 30. Rce1 {[%clk 0:00:20]}  Qa5 {[%clk 0:01:30]} 31. Re3 {[%clk 0:00:18]}  Qxa2 {[%clk 0:01:30]} 32. Bc1 {[%clk 0:00:17]}  Rxc3 {[%clk 0:01:27]} 33. Rxc3 {[%clk 0:00:14]}  Nxc3 {[%clk 0:01:28]} 34. Bh6 {[%clk 0:00:13]}  Ne2+ {[%clk 0:01:27]} 35. Kh2 {[%clk 0:00:08]}  Nxg3 {[%clk 0:01:28]} 0-1